fUSD/lending_fUSD_20240904
["ID","MTS","AMOUNT","RATE_DAILY","PERIOD"]
[337065130,1725408644730,-500.0,0.00014989,2]
[337065131,1725408644739,-500.0,0.00014989,2]
[337065132,1725408644748,-500.0,0.00014989,2]
[337065133,1725408644757,-500.0,0.00014989,2]
[337065134,1725408644766,-500.0,0.00014989,2]
[337065135,1725408644775,-500.0,0.00014989,2]
[337065136,1725408644784,-356.74,0.00014989,2]
[337065137,1725408644794,-500.0,0.00014989,2]
[337065138,1725408644803,-500.0,0.00014989,2]
[337065139,1725408644811,-383.84,0.00014989,2]
[337065140,1725408644821,-500.0,0.00014989,2]
[337065141,1725408644831,-534.94,0.00014989,2]
[337065142,1725408644840,-500.0,0.00014989,2]
[337065143,1725408644849,-500.0,0.00014989,2]
[337065144,1725408644858,-500.0,0.00014989,2]
[337065145,1725408644867,-500.0,0.00014989,2]
[337065146,1725408644878,-500.0,0.00014989,2]
[337065147,1725408644889,-500.0,0.00014989,2]
[337065148,1725408644899,-26569.8,0.00014989,2]
[337065149,1725408644907,-500.0,0.00014989,2]
[337065150,1725408644918,-500.0,0.00014989,2]
[337065151,1725408644928,-42983.036344,0.0001499,2]
[337065152,1725408644938,-32759.8287084,0.0001499,2]
[337065153,1725408644947,-22536.6210729,0.0001499,2]
[337065154,1725408644956,-12313.4134373,0.0001499,2]
[337065155,1725408644966,-2090.2058017,0.0001499,2]
[337065156,1725408644976,-888.2414723,0.0001499,2]
[337065157,1725408644984,-888.2414723,0.0001499,2]
[337065158,1725408644993,-888.2414723,0.0001499,2]
[337065159,1725408645002,-888.2414723,0.0001499,2]
[337065160,1725408645012,-888.2414723,0.0001499,2]
[337065161,1725408645022,-1295.0,0.00014995,2]
[337065162,1725408645031,-53206.2439796,0.00014995,2]
[337065163,1725408645040,-500.0,0.00014997,2]
[337065164,1725408645050,-500.0,0.00014997,2]
[337065165,1725408645059,-500.0,0.00014997,2]
[337065166,1725408645068,-500.0,0.00014997,2]
[337065167,1725408645077,-500.0,0.00014997,2]
[337065168,1725408645086,-500.0,0.00014997,2]
[337065169,1725408645095,-500.0,0.00014997,2]
[337065170,1725408645104,-191.13,0.00014997,2]
[337065171,1725408645113,-500.0,0.00014997,2]
[337065172,1725408645122,-150.0,0.00014998,2]
[337065173,1725408645131,-150.0,0.00014998,2]
[337065174,1725408645141,-150.0,0.00014998,2]
[337065175,1725408645150,-150.0,0.00014998,2]
[337065176,1725408645159,-150.0,0.00014998,2]
[337065177,1725408645168,-500.0,0.00014998,2]
[337065178,1725408645177,-500.0,0.00014998,2]
[337065179,1725408645186,-500.0,0.00014998,2]
[337065180,1725408645195,-500.0,0.00014998,2]
[337065181,1725408645205,-500.0,0.00014998,2]
[337065182,1725408645215,-500.0,0.00014998,2]
[337065183,1725408645226,-461.19038904,0.00014998,2]
[337065184,1725408645236,-362.33364559,0.00014998,2]
[337065185,1725408645245,-500.0,0.00014998,2]
[337065186,1725408645254,-500.0,0.00014998,2]
[337065187,1725408645263,-500.0,0.00014998,2]
[337065188,1725408645272,-409.48497398,0.00014998,2]
[337065189,1725408645281,-501.36887728,0.00014998,2]
[337065190,1725408645291,-206.89066698,0.00014998,2]
[337065191,1725408645300,-593.04115445,0.00014998,2]
[337065192,1725408645309,-500.0,0.00014998,2]
[337065193,1725408645319,-500.0,0.00014998,2]
[337065194,1725408645332,-592.52642176,0.00014998,2]
[337065195,1725408645341,-500.0,0.00014998,2]
[337065196,1725408645351,-161.18,0.00014998,2]
[337065197,1725408645360,-500.0,0.00014998,2]
[337065198,1725408645370,-500.0,0.00014998,2]
[337065199,1725408645380,-500.0,0.00014998,2]
[337065200,1725408645389,-500.0,0.00014998,2]
[337065201,1725408645398,-521.24,0.00014998,2]
[337065202,1725408645408,-334.12,0.00014998,2]
[337065203,1725408645417,-500.0,0.00014998,2]
[337065204,1725408645426,-500.0,0.00014998,2]
[337065205,1725408645435,-500.0,0.00014998,2]
[337065206,1725408645444,-500.0,0.00014998,2]
[337065207,1725408645453,-500.0,0.00014998,2]
[337065208,1725408645462,-162.18,0.00014998,2]
[337065209,1725408645477,-500.0,0.00014998,2]
[337065210,1725408645486,-612.65764763,0.00014998,2]
[337065211,1725408645495,-500.0,0.00014998,2]
[337065212,1725408645504,-500.0,0.00014998,2]
[337065213,1725408645513,-500.0,0.00014998,2]
[337065214,1725408645522,-500.0,0.00014998,2]
[337065215,1725408645531,-500.0,0.00014998,2]
[337065216,1725408645540,-500.0,0.00014998,2]
[337065217,1725408645549,-500.0,0.00014998,2]
[337065218,1725408645558,-500.0,0.00014998,2]
[337065219,1725408645567,-520.29124866,0.00014998,2]
[337065220,1725408645576,-500.0,0.00014998,2]
[337065221,1725408645585,-500.0,0.00014998,2]
[337065222,1725408645594,-176.26,0.00014998,2]
[337065223,1725408645603,-500.0,0.00014998,2]
[337065225,1725408645612,-500.0,0.00014998,2]
[337065227,1725408645621,-500.0,0.00014998,2]
[337065228,1725408645630,-500.0,0.00014998,2]
[337065229,1725408645639,-500.0,0.00014998,2]
[337065230,1725408645648,-279.88,0.00014998,2]
[337065231,1725408645657,-500.0,0.00014998,2]
[337065233,1725408645666,-500.0,0.00014998,2]
[337065234,1725408645675,-500.0,0.00014998,2]
[337065235,1725408645683,-500.0,0.00014998,2]
[337065236,1725408645692,-500.0,0.00014998,2]
[337065237,1725408645701,-500.0,0.00014998,2]
[337065238,1725408645711,-500.0,0.00014998,2]
[337065241,1725408645722,-383.64,0.00014998,2]
[337065242,1725408645731,-500.0,0.00014998,2]
[337065244,1725408645740,-500.0,0.00014998,2]
[337065246,1725408645749,-500.0,0.00014998,2]
[337065248,1725408645759,-500.0,0.00014998,2]
[337065250,1725408645768,-500.0,0.00014998,2]
[337065251,1725408645777,-500.0,0.00014998,2]
[337065253,1725408645787,-661.57,0.00014998,2]
[337065255,1725408645796,-661.57,0.00014998,2]
[337065257,1725408645806,-661.57,0.00014998,2]
[337065259,1725408645815,-500.0,0.00014998,2]
[337065261,1725408645824,-500.0,0.00014998,2]
[337065263,1725408645833,-500.0,0.00014998,2]
[337065265,1725408645842,-500.0,0.00014998,2]
[337065267,1725408645851,-500.0,0.00014998,2]
[337065268,1725408645860,-299.25,0.00014998,2]
[337065270,1725408645870,-500.0,0.00014998,2]
[337065272,1725408645879,-476.27,0.00014998,2]
[337065274,1725408645888,-435.70660715,0.00014998,2]
[337065276,1725408645898,-378.94,0.00014998,2]
[337065278,1725408645907,-500.0,0.00014998,2]
[337065280,1725408645915,-500.0,0.00014998,2]
[337065281,1725408645924,-411.2,0.00014998,2]
[337065283,1725408645933,-500.0,0.00014998,2]
[337065285,1725408645942,-396.59,0.00014998,2]
[337065287,1725408645952,-500.0,0.00014998,2]
[337065289,1725408645961,-500.0,0.00014998,2]
[337065291,1725408645975,-500.0,0.00014998,2]
[337065293,1725408645984,-500.0,0.00014998,2]
[337065295,1725408645993,-500.0,0.00014998,2]
[337065297,1725408646003,-500.0,0.00014998,2]
[337065299,1725408646012,-364.86,0.00014998,2]
[337065301,1725408646022,-500.0,0.00014998,2]
[337065303,1725408646031,-500.0,0.00014998,2]
[337065305,1725408646040,-299.02,0.00014998,2]
[337065307,1725408646049,-500.0,0.00014998,2]
[337065309,1725408646058,-500.0,0.00014998,2]
[337065311,1725408646067,-579.46,0.00014998,2]
[337065313,1725408646076,-500.0,0.00014998,2]
[337065315,1725408646085,-558.22,0.00014998,2]
[337065316,1725408646095,-500.0,0.00014998,2]
[337065317,1725408646104,-500.0,0.00014998,2]
[337065318,1725408646113,-500.0,0.00014998,2]
[337065319,1725408646122,-500.0,0.00014998,2]
[337065320,1725408646130,-500.23,0.00014998,2]
[337065321,1725408646139,-500.0,0.00014998,2]
[337065322,1725408646148,-500.0,0.00014998,2]
[337065323,1725408646158,-500.0,0.00014998,2]
[337065324,1725408646166,-500.0,0.00014998,2]
[337065325,1725408646175,-500.0,0.00014998,2]
[337065326,1725408646184,-500.0,0.00014998,2]
[337065327,1725408646193,-500.0,0.00014998,2]
[337065329,1725408646202,-249.37,0.00014998,2]
[337065330,1725408646211,-346.26542235,0.00014998,2]
[337065332,1725408646223,-500.0,0.00014998,2]
[337065333,1725408646232,-500.0,0.00014998,2]
[337065334,1725408646243,-521.14,0.00014998,2]
[337065335,1725408646252,-500.0,0.00014998,2]
[337065336,1725408646261,-500.0,0.00014998,2]
[337065337,1725408646270,-26569.8,0.00014998,2]
[337065338,1725408646278,-26569.8,0.00014998,2]
[337065339,1725408646287,-26569.8,0.00014998,2]
[337065340,1725408646296,-188.756318,0.00014998,2]
[337065341,1725408646305,-500.0,0.00014998,2]
[337065342,1725408646314,-500.0,0.00014998,2]
[337065343,1725408646325,-500.0,0.00014998,2]
[337065344,1725408646334,-500.0,0.00014998,2]
[337065345,1725408646343,-500.0,0.00014998,2]
[337065346,1725408646351,-500.0,0.00014999,2]
[337065347,1725408646360,-271.48000741,0.00014999,2]
[337065348,1725408646370,-500.0,0.00014999,2]
[337065349,1725408646379,-500.0,0.00014999,2]
[337065350,1725408646388,-500.0,0.00014999,2]
[337065351,1725408646397,-500.0,0.00014999,2]
[337065352,1725408646406,-365.95922775,0.00014999,2]
[337065353,1725408646415,-500.0,0.00014999,2]
[337065354,1725408646424,-500.0,0.00014999,2]
[337065355,1725408646434,-500.0,0.00014999,2]
[337065356,1725408646443,-238.7380689,0.00014999,2]
[337065357,1725408646453,-500.0,0.00014999,2]
[337065358,1725408646462,-304.89,0.00014999,2]
[337065359,1725408646473,-500.0,0.00014999,2]
[337065360,1725408646482,-633.06,0.00014999,2]
[337065361,1725408646491,-510.70901515,0.00014999,2]
[337065362,1725408646500,-500.0,0.00014999,2]
[337065363,1725408646509,-500.0,0.00014999,2]
[337065364,1725408646519,-500.0,0.00014999,2]
[337065365,1725408646527,-500.0,0.00014999,2]
[337065366,1725408646537,-500.0,0.00014999,2]
[337065367,1725408646546,-500.0,0.00014999,2]
[337065368,1725408646555,-500.0,0.00014999,2]
[337065369,1725408646564,-500.0,0.00014999,2]
[337065370,1725408646573,-500.0,0.00014999,2]
[337065371,1725408646582,-500.0,0.00014999,2]
[337065372,1725408646592,-535.5918469,0.00014999,2]
[337065373,1725408646601,-500.0,0.00014999,2]
[337065374,1725408646611,-205.88,0.00014999,2]
[337065375,1725408646620,-392.38,0.00014999,2]
[337065376,1725408646629,-500.0,0.00014999,2]
[337065377,1725408646639,-421.88,0.00014999,2]
[337065378,1725408646648,-314.92,0.00014999,2]
[337065379,1725408646658,-500.0,0.00014999,2]
[337065380,1725408646667,-500.0,0.00014999,2]
[337065381,1725408646676,-284.42363513,0.00014999,2]
[337065382,1725408646686,-500.0,0.00014999,2]
[337065383,1725408646695,-500.0,0.00014999,2]
[337065384,1725408646704,-453.21,0.00014999,2]
[337065385,1725408646714,-500.0,0.00014999,2]
[337065386,1725408646729,-210.5,0.00014999,2]
[337065387,1725408646739,-264.55,0.00014999,2]
[337065388,1725408646748,-661.57,0.00014999,2]
[337065389,1725408646757,-661.57,0.00014999,2]
[337065390,1725408646767,-661.57,0.00014999,2]
[337065391,1725408646777,-661.57,0.00014999,2]
[337065392,1725408646786,-661.57,0.00014999,2]
[337065393,1725408646800,-661.57,0.00014999,2]
[337065394,1725408646809,-661.57,0.00014999,2]
[337065395,1725408646818,-661.57,0.00014999,2]
[337065396,1725408646828,-661.57,0.00014999,2]
[337065397,1725408646837,-661.57,0.00014999,2]
[337065398,1725408646846,-661.57,0.00014999,2]
[337065399,1725408646855,-661.57,0.00014999,2]
[337065400,1725408646864,-661.57,0.00014999,2]
[337065401,1725408646874,-661.57,0.00014999,2]
[337065402,1725408646883,-661.57,0.00014999,2]
[337065403,1725408646893,-661.57,0.00014999,2]
[337065404,1725408646902,-661.57,0.00014999,2]
[337065405,1725408646911,-661.58,0.00014999,2]
[337065406,1725408646921,-500.0,0.00014999,2]
[337065407,1725408646930,-191.87,0.00014999,2]
[337065408,1725408646940,-302.63,0.00014999,2]
[337065409,1725408646949,-500.0,0.00014999,2]
[337065410,1725408646959,-500.0,0.00014999,2]
[337065411,1725408646971,-500.0,0.00014999,2]
[337065412,1725408646981,-500.0,0.00014999,2]
[337065413,1725408647147,-500.0,0.00014999,2]
[337065414,1725408647158,-500.0,0.00014999,2]
[337065415,1725408647167,-378.63,0.00014999,2]
[337065416,1725408647177,-473.57,0.00014999,2]
[337065417,1725408647187,-500.0,0.00014999,2]
[337065418,1725408647197,-500.0,0.00014999,2]
[337065419,1725408647207,-612.62227555,0.00014999,2]
[337065420,1725408647219,-500.0,0.00014999,2]
[337065421,1725408647229,-500.0,0.00014999,2]
[337065422,1725408647239,-500.0,0.00014999,2]
[337065423,1725408647248,-500.0,0.00014999,2]
[337065424,1725408647258,-500.0,0.00014999,2]
[337065425,1725408647268,-431.85,0.00014999,2]
[337065426,1725408647277,-26569.8,0.00014999,2]
[337065427,1725408647287,-26569.8,0.00014999,2]
[337065428,1725408647296,-26569.8,0.00014999,2]
[337065429,1725408647305,-26569.8,0.00014999,2]
[337065430,1725408647314,-26569.8,0.00014999,2]
[337065431,1725408647326,-26569.8,0.00014999,2]
[337065432,1725408647335,-26569.8,0.00014999,2]
[337065433,1725408647344,-26569.8,0.00014999,2]
[337065434,1725408647353,-26569.8,0.00014999,2]
[337065435,1725408647363,-26569.8,0.00014999,2]
[337065436,1725408647372,-26569.8,0.00014999,2]
[337065437,1725408647382,-26569.8,0.00014999,2]
[337065438,1725408647392,-26569.8,0.00014999,2]
[337065439,1725408647404,-26569.8,0.00014999,2]
[337065440,1725408647414,-26569.8,0.00014999,2]
[337065441,1725408647423,-26569.8,0.00014999,2]
[337065442,1725408647433,-26569.9723747,0.00014999,2]
[337065443,1725408647442,-500.0,0.00014999,2]
[337065444,1725408647452,-500.0,0.00014999,2]
[337065445,1725408647461,-303.76,0.00014999,2]
[337065446,1725408647472,-500.0,0.00014999,2]
[337065447,1725408647481,-500.0,0.00014999,2]
[337065448,1725408647491,-500.0,0.00014999,2]
[337065449,1725408647501,-481.79,0.00014999,2]
[337065450,1725408647510,-959470.77762553,0.00015,2]
[337065451,1725408647519,-840298.50123176,0.00015,2]
[337065452,1725408647573,-263.15023285,0.00015,2]
[337065453,1725408647584,-3608.11273127,0.00015,2]
[337065454,1725408647596,-6326.66552144,0.00015,2]
[337065455,1725408648668,-217.72162827,0.000149,2]
[337065456,1725408648678,-448.48,0.00014978,3]
[337065457,1725408648687,-549.29837173,0.00015,2]
[337065458,1725408648699,-11570.38791186,0.00015,2]
[337065459,1725408648710,-608.375,0.00015,2]
[337065460,1725409024138,353.25,0.00011423,2]
[337065461,1725409036987,285.06,0.00010959,2]
[337065462,1725409424163,550.0,0.00011,2]
[337065463,1725409425253,600.0,0.00013,2]
[337065472,1725409635174,162.06,0.00010959,2]
[337065473,1725409637416,1177.0,0.00013,2]
[337065474,1725409720890,335.58,0.00011457,2]
[337065486,1725409832026,-152.97,0.00013249,2]
[337065488,1725409832036,-200.0,0.00013256,2]
[337065489,1725409832045,-353.04727471,0.00013296,2]
[337065490,1725409832054,-86.57284269,0.00013345,2]
[337065492,1725409832066,-913.42715731,0.00013345,2]
[337065494,1725409832075,-250.0,0.00013363,2]
[337065496,1725409832084,-321.41,0.00013375,2]
[337065497,1725409832094,-250.0,0.00013418,2]
[337065498,1725409832103,-150.99,0.00013696,2]
[337065499,1725409832112,-88.99534269,0.00013696,2]
[337065500,1725409832123,-740.01465731,0.00013696,2]
[337065501,1725409832133,-136.10494406,0.00013696,2]
[337065502,1725409832151,-589.68650738,0.00013696,2]
[337065503,1725409832160,-335.58,0.00013721,2]
[337065504,1725409832169,-150.0,0.0001393,2]
[337065505,1725409832178,-442.61,0.0001393,2]
[337065506,1725409832187,-3815.25035701,0.00013931,2]
[337065507,1725409832198,-2613.10872722,0.00013931,2]
[337065508,1725409832209,-442.32091577,0.00013931,2]
[337065509,1725409832217,-124.81908423,0.00013931,2]
[337065510,1725409832228,-699.64091577,0.00013931,2]
[337065511,1725409832237,-1716.89181124,0.00013931,2]
[337065512,1725409832247,-541.0092199,0.00013931,2]
[337065513,1725409832258,-3831.16040795,0.00013931,2]
[337065515,1725409832273,-598.97184433,0.00013931,2]
[337065517,1725409832283,-542.67878054,0.00013931,2]
[337065519,1725409832294,-541.67813662,0.00013931,2]
[337065521,1725409832308,-2227.59979942,0.00013931,2]
[337065523,1725409832317,-26887.17,0.00013931,2]
[337065525,1725409832326,-794.54,0.00013932,2]
[337065527,1725409832335,-1666.81,0.00013932,2]
[337065529,1725409832345,-2156.28,0.00013932,2]
[337065531,1725409832353,-1016.95,0.00013932,2]
[337065533,1725409832363,-267.39,0.00013933,2]
[337065535,1725409832372,-623.43,0.00013933,2]
[337065537,1725409832381,-1355.31,0.00013933,2]
[337065539,1725409832390,-1647.36,0.00013933,2]
[337065541,1725409832399,-150.99,0.00013933,2]
[337065543,1725409832408,-267.39,0.00013937,2]
[337065545,1725409832417,-856.8,0.00013937,2]
[337065547,1725409832426,-267.39,0.0001394,2]
[337065549,1725409832435,-267.39,0.00013944,2]
[337065551,1725409832444,-267.39,0.00013948,2]
[337065553,1725409832453,-171.99,0.00013948,2]
[337065554,1725409832462,-267.39,0.00013951,2]
[337065556,1725409832470,-267.39,0.00013955,2]
[337065558,1725409832479,-267.39,0.00013959,2]
[337065560,1725409832488,-267.39,0.00013962,2]
[337065562,1725409832497,-267.39,0.00013966,2]
[337065564,1725409832506,-267.39,0.0001397,2]
[337065566,1725409832515,-267.39,0.00013973,2]
[337065568,1725409832524,-267.39,0.00013977,2]
[337065570,1725409832533,-267.39,0.00013981,2]
[337065572,1725409832542,-267.39,0.00013984,2]
[337065574,1725409832551,-267.39,0.00013988,2]
[337065576,1725409832560,-267.39,0.00013992,2]
[337065578,1725409832569,-267.39,0.00013995,2]
[337065580,1725409832578,-267.39,0.00013999,2]
[337065582,1725409832587,-267.39,0.00014003,2]
[337065584,1725409832596,-407.6,0.000143,2]
[337065586,1725409832605,-1898.0,0.00014412,2]
[337065588,1725409832614,-552.0,0.00014412,2]
[337065590,1725409832623,-1139.0,0.00014412,2]
[337065592,1725409832632,-881.364,0.00014412,2]
[337065594,1725409832641,-248.0,0.00014412,2]
[337065596,1725409832649,-3354.209,0.00014412,2]
[337065598,1725409832658,-1921.0,0.00014412,2]
[337065600,1725409832668,-289.0,0.00014412,2]
[337065602,1725409832678,-3731.0,0.00014412,2]
[337065603,1725409832687,-5852.0,0.00014412,2]
[337065604,1725409832696,-623.0,0.00014412,2]
[337065605,1725409832705,-161.63783238,0.0001478,2]
[337065606,1725409832714,-300.0,0.00014781,2]
[337065607,1725409832723,-161.63783233,0.00014793,2]
[337065608,1725409832733,-1500.0,0.00014797,2]
[337065609,1725409832742,-161.63783233,0.00014807,2]
[337065610,1725409832751,-1500.0,0.00014808,2]
[337065611,1725409832761,-161.63783233,0.0001482,2]
[337065612,1725409832770,-161.63783233,0.00014833,2]
[337065613,1725409832778,-1500.0,0.00014836,2]
[337065614,1725409832788,-161.63783233,0.00014847,2]
[337065615,1725409832797,-1500.0,0.00014847,2]
[337065616,1725409832806,-11759.07580409,0.0001485,2]
[337065617,1725409832815,-2538.37127,0.0001485,2]
[337065618,1725409832824,-161.63783233,0.0001486,2]
[337065619,1725409832833,-1109.0611387,0.00014871,3]
[337065620,1725409832842,-161.63783233,0.00014873,2]
[337065621,1725409832851,-500.0,0.00014879,2]
[337065622,1725409832860,-500.0,0.00014879,2]
[337065623,1725409832870,-500.0,0.00014879,2]
[337065624,1725409832879,-500.0,0.00014879,2]
[337065625,1725409832888,-500.0,0.00014879,2]
[337065626,1725409832898,-500.0,0.00014879,2]
[337065627,1725409832907,-500.0,0.00014879,2]
[337065628,1725409832916,-500.0,0.00014879,2]
[337065629,1725409832925,-500.0,0.00014879,2]
[337065630,1725409832935,-500.0,0.00014879,2]
[337065631,1725409832944,-500.0,0.00014879,2]
[337065632,1725409832953,-500.0,0.00014879,2]
[337065633,1725409832962,-500.0,0.00014879,2]
[337065634,1725409832971,-500.0,0.00014879,2]
[337065635,1725409832980,-500.0,0.00014879,2]
[337065636,1725409832990,-476.225,0.00014879,2]
[337065637,1725409833000,-337.17429748,0.00014879,2]
[337065638,1725409833009,-368.77418204,0.00014879,2]
[337065639,1725409833019,-500.0,0.00014879,2]
[337065640,1725409833028,-500.0,0.00014879,2]
[337065641,1725409833037,-500.0,0.00014879,2]
[337065642,1725409833046,-500.0,0.00014879,2]
[337065643,1725409833055,-500.0,0.00014879,2]
[337065644,1725409833065,-500.0,0.00014879,2]
[337065645,1725409833074,-500.0,0.00014879,2]
[337065646,1725409833083,-500.0,0.00014879,2]
[337065647,1725409833092,-500.0,0.00014879,2]
[337065648,1725409833101,-500.0,0.00014879,2]
[337065649,1725409833110,-500.0,0.00014879,2]
[337065650,1725409833119,-500.0,0.00014879,2]
[337065651,1725409833129,-500.0,0.00014879,2]
[337065652,1725409833138,-500.0,0.00014879,2]
[337065653,1725409833147,-500.0,0.00014879,2]
[337065654,1725409833156,-500.0,0.00014879,2]
[337065655,1725409833165,-500.0,0.00014879,2]
[337065656,1725409833175,-500.0,0.00014879,2]
[337065657,1725409833184,-500.0,0.00014879,2]
[337065658,1725409833193,-500.0,0.00014879,2]
[337065659,1725409833202,-500.0,0.00014879,2]
[337065660,1725409833211,-500.0,0.00014879,2]
[337065661,1725409833220,-534.41156219,0.00014879,2]
[337065662,1725409833230,-500.0,0.00014879,2]
[337065663,1725409833239,-500.0,0.00014879,2]
[337065664,1725409833248,-500.0,0.00014879,2]
[337065665,1725409833258,-500.0,0.0001488,2]
[337065666,1725409833267,-500.0,0.0001488,2]
[337065667,1725409833275,-500.0,0.0001488,2]
[337065668,1725409833285,-500.0,0.0001488,2]
[337065669,1725409833294,-500.0,0.0001488,2]
[337065670,1725409833304,-500.0,0.0001488,2]
[337065671,1725409833314,-500.0,0.0001488,2]
[337065672,1725409833323,-500.0,0.0001488,2]
[337065673,1725409833333,-500.0,0.0001488,2]
[337065674,1725409833343,-500.0,0.0001488,2]
[337065675,1725409833352,-500.0,0.0001488,2]
[337065676,1725409833361,-500.0,0.0001488,2]
[337065677,1725409833372,-500.0,0.0001488,2]
[337065678,1725409833381,-500.0,0.0001488,2]
[337065679,1725409833390,-534.9,0.0001488,2]
[337065680,1725409833399,-500.0,0.0001488,2]
[337065681,1725409833409,-500.0,0.0001488,2]
[337065682,1725409833418,-16013.88832549,0.0001488,2]
[337065690,1725409838120,-1144.0,0.00014412,2]
[337065691,1725409838130,-13459.0,0.00014412,2]
[337065692,1725409838141,-500.0,0.00014879,2]
[337065693,1725409838150,-3986.11167451,0.0001488,2]
[337065694,1725409838160,-500.0,0.0001488,2]
[337065695,1725409838170,-500.0,0.0001488,2]
[337065696,1725409838179,-500.0,0.0001488,2]
[337065697,1725409838189,-500.0,0.0001488,2]
[337065698,1725409838199,-500.0,0.0001488,2]
[337065699,1725409838208,-500.0,0.0001488,2]
[337065700,1725409838218,-500.0,0.0001488,2]
[337065701,1725409838228,-500.0,0.0001488,2]
[337065702,1725409838237,-500.0,0.0001488,2]
[337065703,1725409838247,-500.0,0.0001488,2]
[337065704,1725409838256,-500.0,0.0001488,2]
[337065705,1725409838265,-500.0,0.0001488,2]
[337065706,1725409838275,-500.0,0.0001488,2]
[337065707,1725409838284,-500.0,0.0001488,2]
[337065708,1725409838294,-500.0,0.0001488,2]
[337065709,1725409838303,-500.0,0.0001488,2]
[337065710,1725409838313,-500.0,0.0001488,2]
[337065711,1725409838323,-529.56771416,0.0001488,2]
[337065712,1725409838332,-500.0,0.0001488,2]
[337065713,1725409838342,-649.39280683,0.0001488,2]
[337065714,1725409838351,-500.0,0.0001488,2]
[337065715,1725409838360,-500.0,0.0001488,2]
[337065716,1725409838370,-500.0,0.0001488,2]
[337065717,1725409838380,-500.0,0.0001488,2]
[337065718,1725409838389,-500.0,0.0001488,2]
[337065719,1725409838399,-500.0,0.0001488,2]
[337065720,1725409838408,-500.0,0.0001488,2]
[337065721,1725409838418,-500.0,0.0001488,2]
[337065723,1725409838428,-500.0,0.0001488,2]
[337065725,1725409838437,-500.0,0.0001488,2]
[337065727,1725409838447,-500.0,0.0001488,2]
[337065729,1725409838456,-500.0,0.0001488,2]
[337065730,1725409838466,-500.0,0.0001488,2]
[337065732,1725409838475,-500.0,0.0001488,2]
[337065733,1725409838485,-500.0,0.0001488,2]
[337065734,1725409838494,-500.0,0.0001488,2]
[337065735,1725409838503,-500.0,0.0001488,2]
[337065736,1725409838513,-500.0,0.0001488,2]
[337065737,1725409838522,-500.0,0.0001488,2]
[337065738,1725409838532,-528.03597222,0.0001488,2]
[337065739,1725409838541,-500.0,0.0001488,2]
[337065740,1725409838550,-500.0,0.0001488,2]
[337065741,1725409838560,-507.75342303,0.0001488,2]
[337065742,1725409838569,-500.0,0.0001488,2]
[337065743,1725409838578,-500.0,0.0001488,2]
[337065744,1725409838588,-500.0,0.0001488,2]
[337065745,1725409838598,-500.0,0.0001488,2]
[337065746,1725409838607,-511.27191587,0.0001488,2]
[337065747,1725409838616,-516.30153265,0.0001488,2]
[337065748,1725409838625,-500.0,0.0001488,2]
[337065749,1725409838638,-500.0,0.0001488,2]
[337065750,1725409838647,-500.79380631,0.0001488,2]